bitfinex/quotes_SOLUSD_20240829
["timestamp","ask_amount","ask_price","bid_price","bid_amount"]
[1724967841602,7.1317,140.22,140.16,62.96109]
[1724967841803,7.1317,140.22,140.17,0.25098]
[1724967842431,20.0,140.21,140.18,7.1336]
[1724967843132,7.1331,140.2,140.16,17.8356]
[1724967843313,40.87286893,140.21,140.16,24.9702]
[1724967843519,7.1326,140.2,140.16,17.8356]
[1724967845146,40.87286893,140.21,140.16,24.9701]
[1724967846214,7.1328,140.2,140.16,17.8356]
[1724967846417,33.74066893,140.21,140.15,7.1352]
[1724967846418,7.1331,140.19,140.15,7.1352]
[1724967849236,27.1323,140.21,140.16,45.0]
[1724967849528,20.0,140.21,140.16,45.0]
[1724967849835,7.133,140.2,140.15,24.9717]
[1724967851921,7.133,140.2,140.16,7.1346]
[1724967855922,7.133,140.2,140.15,24.9717]
[1724967856453,7.1332,140.19,140.15,24.9717]
[1724967856931,7.1328,140.2,140.15,24.9717]
[1724967859553,33.74066893,140.21,140.16,7.1342]
[1724967860345,7.1327,140.2,140.16,7.1342]
[1724967879267,13.74066893,140.21,140.17,7.1341]
[1724967879766,20.87316893,140.21,140.17,7.1341]
[1724967880339,27.1328,140.2,140.16,7.1346]
[1724967884337,20.0,140.2,140.17,7.1341]
[1724967893875,27.1329,140.2,140.16,7.1346]
[1724967910283,7.1329,140.2,140.17,52.1341]
[1724967910986,7.1329,140.2,140.17,45.0]
[1724967911183,7.1329,140.2,140.16,7.1346]
[1724967911696,7.1329,140.2,140.17,45.0]
[1724967921701,46.71136893,140.23,140.15,24.9717]
[1724967921876,13.74066893,140.21,140.16,45.12549]
[1724967922072,7.1337,140.18,140.14,7.1355]
[1724967934690,7.1342,140.17,140.13,7.136]
[1724967937111,29.09976893,140.17,140.12,17.8408]
[1724967937309,7.1355,140.15,140.11,7.1371]
[1724967937508,20.87616893,140.15,140.11,7.1371]
[1724967941220,13.74066893,140.15,140.09,17.8448]
[1724967941438,7.1357,140.14,140.1,52.1377]
[1724967941729,7.1357,140.14,140.1,7.1377]
[1724967945025,7.1352,140.15,140.11,7.1371]
[1724967945226,7.1358,140.14,140.1,7.1377]
[1724967945429,7.1358,140.14,140.09,24.9828]
[1724967946627,7.1358,140.14,140.1,7.1376]
[1724967953519,7.1369,140.12,140.09,17.8448]
[1724967953728,20.0,140.16,140.09,17.8448]
[1724967954114,7.1358,140.14,140.1,7.1377]
[1724967961419,20.0,140.13,140.1,7.1377]
[1724967968942,27.1362,140.13,140.09,24.9829]
[1724967971752,7.1362,140.13,140.09,24.9829]
[1724967979831,20.0,140.12,140.09,24.9829]
[1724967981373,27.1368,140.12,140.09,17.8448]
[1724967983135,7.1372,140.11,140.07,7.1392]
[1724967983343,27.137,140.12,140.08,7.1387]
[1724967984537,7.1375,140.11,140.07,13.66419881]
[1724967984946,7.1375,140.11,140.07,7.1392]
[1724967985147,20.0,140.1,140.07,13.66410169]
[1724967985349,20.0,140.1,140.07,7.1392]
[1724967985566,20.0,140.1,140.07,13.6641031]
[1724967985776,20.0,140.1,140.07,7.1392]
[1724967986132,7.137,140.12,140.08,52.1387]
[1724967989059,20.0,140.11,140.08,52.1387]
[1724967989634,20.0,140.11,140.08,7.1387]
[1724967990638,7.1363,140.13,140.09,7.1381]
[1724968001377,7.1359,140.14,140.09,7.1381]
[1724968001674,20.0,140.13,140.09,7.1381]
[1724968007779,20.0,140.13,140.1,45.0]
[1724968009587,27.1364,140.13,140.1,45.0]
[1724968010085,20.0,140.13,140.1,45.0]
[1724968010272,20.0,140.13,140.1,52.1376]
[1724968021993,20.0,140.13,140.09,7.1381]
[1724968023399,20.0,140.13,140.1,45.0]
[1724968026190,20.0,140.13,140.11,7.137]
[1724968026495,7.1348,140.16,140.12,52.1366]
[1724968028992,7.1343,140.17,140.13,7.1362]
[1724968029191,20.0,140.16,140.13,7.1362]
[1724968033502,7.1343,140.17,140.13,7.1362]
[1724968036594,20.87446893,140.18,140.14,7.1357]
[1724968037175,7.1338,140.18,140.14,7.1357]
[1724968043301,7.1342,140.17,140.13,7.1361]
[1724968045700,7.1338,140.18,140.14,7.1354]
[1724968059517,7.1342,140.17,140.13,23.1593]
[1724968059924,7.1337,140.18,140.14,7.1356]
[1724968061227,7.1332,140.19,140.15,7.135]
[1724968061518,20.0,140.18,140.15,7.135]
[1724968082336,20.0,140.18,140.14,17.8391]
[1724968082549,7.1337,140.18,140.14,24.9746]
[1724968091859,7.1337,140.18,140.15,7.1351]
[1724968094842,7.1337,140.18,140.14,24.9746]
[1724968099263,7.1342,140.17,140.14,24.9746]
[1724968100275,7.1337,140.18,140.14,24.9746]
[1724968107161,27.1334,140.19,140.15,7.1351]
[1724968107372,20.0,140.19,140.14,17.8391]
[1724968107565,20.0,140.2,140.14,17.8391]
[1724968108346,7.1337,140.18,140.14,24.9747]
[1724968115163,7.1332,140.19,140.15,7.135]
[1724968115347,7.1332,140.19,140.15,52.135]
[1724968115673,7.1328,140.2,140.16,7.1346]
[1724968115846,20.0,140.19,140.16,7.1346]
[1724968120278,27.1335,140.19,140.15,45.0]
[1724968121274,20.0,140.19,140.15,45.0]
[1724968121653,20.0,140.2,140.15,45.0]
[1724968121885,7.1336,140.19,140.15,7.1347]
[1724968122678,7.1346,140.17,140.13,16.14879]
[1724968122848,7.1337,140.18,140.14,7.1355]
[1724968124374,20.0,140.2,140.15,7.135]
[1724968124576,7.1334,140.19,140.15,7.135]
[1724968128084,7.1334,140.19,140.16,45.0]
[1724968128401,20.0,140.2,140.16,52.1343]
[1724968129267,27.133,140.2,140.16,52.1343]
[1724968129492,7.1333,140.19,140.16,45.0]
[1724968129692,7.1333,140.19,140.15,17.837]
[1724968130773,6.6333,140.19,140.15,24.972]
[1724968135200,7.1337,140.18,140.15,17.837]
[1724968135681,7.1333,140.19,140.15,17.837]
[1724968138480,7.1337,140.18,140.15,17.837]
[1724968148631,7.1337,140.18,140.15,24.9722]
[1724968151829,7.1332,140.19,140.15,24.9722]
[1724968152029,7.1332,140.19,140.16,45.0]
[1724968155131,7.1332,140.19,140.15,25.09769]
[1724968155307,7.1332,140.19,140.15,24.9722]
[1724968158220,20.0,140.2,140.15,17.837]
[1724968158221,7.1336,140.18,140.15,17.837]
[1724968161616,7.1342,140.17,140.13,23.1592]
[1724968172147,20.0,140.2,140.14,17.8388]
[1724968172315,7.1341,140.18,140.14,17.8388]
[1724968173233,7.1343,140.17,140.14,17.8388]
[1724968176233,7.1343,140.17,140.13,7.136]
[1724968177922,7.135,140.16,140.12,13.7925]
[1724968185148,7.135,140.16,140.11,17.96749]
[1724968185149,7.1352,140.15,140.11,25.10459]
[1724968185352,7.1352,140.15,140.12,45.25098]
[1724968185842,7.1352,140.15,140.12,45.0]
[1724968186638,7.1352,140.15,140.11,24.9791]
[1724968201134,258.0,140.27,140.13,5.0]
[1724968201458,13.74066893,140.18,140.13,5.0]
[1724968202555,13.74066893,140.18,140.15,5.0]
[1724968203063,13.74066893,140.18,140.13,5.0]
[1724968203247,20.0,140.17,140.13,5.0]
[1724968203837,20.0,140.18,140.13,5.0]
[1724968204838,33.74066893,140.19,140.13,5.0]
[1724968206157,33.74066893,140.19,140.15,5.0]
[1724968206547,33.74066893,140.19,140.13,5.0]
[1724968210456,20.0,140.19,140.13,5.0]
[1724968210661,13.74066893,140.18,140.13,5.0]
[1724968210836,20.0,140.17,140.13,5.0]
[1724968225279,20.0,140.17,140.11,29.979]
[1724968229785,20.0,140.17,140.11,5.0]
[1724968229988,13.74066893,140.16,140.11,5.0]
[1724968230184,20.0,140.15,140.11,5.0]
[1724968238285,20.0,140.15,140.1,6.5575]
[1724968238494,20.0,140.15,140.1,13.6952]
[1724968238869,20.0,140.16,140.11,5.0]
[1724968242670,20.0,140.19,140.11,5.0]
[1724968242869,13.74066893,140.18,140.11,5.0]
[1724968243180,20.0,140.17,140.11,5.0]
[1724968243968,13.74066893,140.17,140.11,5.0]
[1724968244168,20.0,140.16,140.11,5.0]
[1724968254896,20.0,140.15,140.11,5.0]
[1724968255893,20.0,140.16,140.11,5.0]
[1724968257799,19.5,140.16,140.11,5.0]
[1724968268406,20.0,140.15,140.11,5.0]
[1724968271075,13.74066893,140.16,140.11,5.0]
[1724968271277,20.0,140.15,140.11,5.0]
[1724968272379,20.0,140.19,140.11,5.0]
[1724968272579,13.74066893,140.17,140.11,5.0]
[1724968272778,20.0,140.16,140.11,5.0]
[1724968277909,13.74066893,140.18,140.11,5.0]
[1724968278115,20.0,140.17,140.11,5.0]
[1724968279407,13.74066893,140.18,140.11,5.0]
[1724968279587,20.0,140.17,140.11,5.0]
[1724968280699,20.0,140.19,140.11,5.0]
[1724968280914,13.74066893,140.18,140.11,20.5434]
[1724968281099,20.0,140.17,140.11,20.5434]
[1724968282906,20.0,140.17,140.11,15.5434]
[1724968283508,13.74066893,140.16,140.11,15.5434]
[1724968283806,20.0,140.15,140.11,15.5434]
[1724968286417,13.74066893,140.14,140.11,15.5434]
[1724968286712,20.0,140.13,140.11,15.5434]
[1724968288509,13.74066893,140.12,140.07,21.4904]
[1724968288814,20.0,140.11,140.07,16.4904]
[1724968290120,13.74066893,140.1,140.07,16.4904]
[1724968290412,20.0,140.09,140.07,16.4904]
[1724968291410,20.0,140.09,140.06,6.1476]
[1724968291908,20.0,140.09,140.04,16.4904]
[1724968292113,13.74066893,140.08,140.04,16.4904]
[1724968292311,20.0,140.07,140.04,16.4904]
[1724968302015,13.74066893,140.07,140.04,16.4904]
[1724968302205,20.0,140.06,140.04,16.4904]
[1724968304323,8.71217081,140.14,140.04,16.4904]
[1724968304511,13.74066893,140.08,140.04,16.4904]
[1724968305905,20.0,140.07,140.04,16.4904]
[1724968306123,13.74066893,140.06,140.04,16.4904]
[1724968306424,20.0,140.05,140.04,16.4904]
[1724968318030,20.0,140.05,140.02,6.1476]
[1724968320117,20.0,140.05,140.0,16.6423]
[1724968320640,13.74066893,140.04,140.0,16.6423]
[1724968320819,20.0,140.03,140.0,16.6423]
[1724968322231,20.0,140.03,139.99,6.2393]
[1724968323115,20.0,140.03,139.97,21.0268]
[1724968323328,13.74066893,140.03,139.97,21.0268]
[1724968323527,20.0,140.02,139.97,21.0268]
[1724968325157,20.0,140.02,139.99,5.0]
[1724968329636,16.94152113,140.05,139.99,5.0]
[1724968329835,20.0,140.04,139.99,5.0]
[1724968330030,20.0,140.04,139.97,21.0268]
[1724968330338,20.0,140.04,139.99,5.0]
[1724968331337,20.0,140.04,139.97,27.3715]
[1724968331539,13.74066893,140.03,139.97,27.3715]
[1724968331719,20.0,140.02,139.97,27.3715]
[1724968333437,20.0,140.02,139.98,5.0]
[1724968334242,13.74066893,140.04,139.98,5.0]
[1724968334439,20.0,140.03,139.98,5.0]
[1724968334825,20.0,140.03,140.0,5.0]
[1724968335142,20.0,140.07,140.0,5.0]
[1724968335447,13.74066893,140.05,140.0,5.0]
[1724968335742,20.0,140.04,140.0,5.0]
[1724968336342,13.74066893,140.04,140.0,5.0]
[1724968336537,20.0,140.03,140.0,5.0]
[1724968337431,20.0,140.03,139.98,5.0]
[1724968340249,20.0,140.03,140.0,5.0]
[1724968345454,20.0,140.05,140.0,5.0]
[1724968346753,20.0,140.06,140.0,5.0]
[1724968347051,20.0,140.07,140.0,5.0]
[1724968347243,13.74066893,140.06,140.0,5.0]
[1724968347444,20.0,140.05,140.0,5.0]
[1724968350141,13.74066893,140.06,140.0,5.0]
[1724968350341,20.0,140.05,140.0,5.0]
[1724968351042,13.74066893,140.06,140.0,5.0]
[1724968351242,20.0,140.05,140.0,5.0]
[1724968351656,20.0,140.05,140.02,5.0]
[1724968353857,20.0,140.05,140.0,5.0]
[1724968354035,13.74066893,140.05,140.0,5.0]
[1724968354234,20.0,140.04,140.0,5.0]
[1724968360639,20.0,140.04,139.97,47.3757]
[1724968360640,20.0,140.04,140.02,5.0]
[1724968364971,20.0,140.03,140.02,5.0]
[1724968369578,20.0,140.03,140.01,21.8453]
[1724968369758,20.0,140.04,140.01,21.8453]
[1724968370672,20.0,140.04,140.02,5.0]
[1724968375856,20.0,140.04,140.01,21.8453]
[1724968376272,20.0,140.05,140.01,21.8453]
[1724968377388,20.0,140.05,140.02,5.0]
[1724968379482,20.0,140.05,140.01,21.8453]
[1724968379987,20.0,140.05,140.02,5.0]
[1724968380285,13.74066893,140.06,140.02,5.0]
[1724968380579,20.0,140.05,140.02,5.0]
[1724968385162,13.74066893,140.06,140.02,5.0]
[1724968385366,20.0,140.05,140.02,5.0]
[1724968386076,20.0,140.05,140.01,21.8453]
[1724968386864,20.0,140.09,140.01,21.8453]
[1724968387161,13.74066893,140.04,140.0,5.0]
[1724968387460,20.0,140.03,140.0,5.0]
[1724968395291,20.0,140.03,139.98,11.2926]
[1724968395489,13.74066893,140.02,139.98,11.2926]
[1724968395796,20.0,140.01,139.98,11.2926]
[1724968397085,13.74066893,140.03,139.98,11.2926]
[1724968397287,20.0,140.02,139.98,11.2926]
[1724968400386,23.25720718,140.06,139.98,11.2926]
[1724968400569,13.74066893,140.03,139.98,11.2926]
[1724968401078,20.0,140.02,139.98,11.2926]
[1724968401266,13.74066893,140.01,139.98,11.2926]
[1724968401565,20.0,140.0,139.98,11.2926]
[1724968402891,20.0,140.02,139.98,11.2926]
[1724968405891,13.74066893,140.04,139.98,11.2926]
[1724968406077,20.0,140.03,139.98,11.2926]
[1724968413097,13.74066893,140.04,139.98,11.2926]
[1724968413283,20.0,140.03,139.98,11.2926]
[1724968413671,20.0,140.03,140.0,5.0]
[1724968415704,13.74066893,140.03,140.0,5.0]
[1724968415874,20.0,140.02,140.0,5.0]
[1724968416076,20.0,140.02,139.98,11.2926]
[1724968418886,20.0,140.02,139.98,6.2926]
[1724968419088,45.0,140.01,139.98,6.2926]
[1724968419400,20.0,140.0,139.98,6.2926]
[1724968420289,7.1433,139.99,139.98,6.2926]
[1724968420481,27.1433,139.99,139.98,6.2926]
[1724968420682,7.1438,139.98,139.97,15.8275]
[1724968420881,27.1438,139.98,139.97,15.8275]
[1724968424793,7.1438,139.98,139.97,15.8275]
[1724968424991,27.1438,139.98,139.97,15.8275]
[1724968427485,27.1438,139.98,139.96,5.0]
[1724968427886,7.1443,139.97,139.96,5.0]
[1724968437295,27.1443,139.97,139.96,5.0]
[1724968450018,10.84403952,140.03,139.98,5.0]
[1724968450317,7.1434,139.99,139.98,5.0]
[1724968451936,27.1434,139.99,139.98,5.0]
[1724968461748,27.1434,139.99,139.93,17.8657]
[1724968461749,27.1434,139.99,139.5,15.01160229]
[1724968461920,27.1434,139.99,139.91,68.90520953]
[1724968462320,27.1434,139.99,139.92,3.65422953]
[1724968462520,27.1434,139.99,139.93,0.25098]
[1724968462818,27.1434,139.99,139.93,45.25098]
[1724968463215,27.1434,139.99,139.93,0.25098]
[1724968463420,27.1434,139.99,139.95,7.1453]
[1724968471528,27.1434,139.99,139.94,22.1734]
[1724968471529,20.0,139.99,139.94,22.1734]
[1724968471717,7.1439,139.98,139.94,29.3192]
[1724968472833,7.1439,139.98,139.94,7.1458]
[1724968473203,13.74066893,139.99,139.91,7.1472]
[1724968473422,7.145,139.96,139.91,7.1472]
[1724968474312,7.145,139.96,139.91,10.80181715]
[1724968475124,7.145,139.96,139.91,10.80177138]
[1724968477435,7.145,139.96,139.91,7.1472]
[1724968481439,13.74066893,139.97,139.9,40.6012]
[1724968481440,7.1457,139.95,139.9,47.7491]
[1724968481739,7.1457,139.95,139.9,25.0172]
[1724968482118,7.1462,139.94,139.9,17.8693]
[1724968484734,7.1468,139.93,139.88,7.1489]
[1724968486218,7.1469,139.92,139.87,40.5885]
[1724968486428,7.1469,139.92,139.87,25.0225]
[1724968487024,7.1469,139.92,139.88,7.1489]
[1724968488831,7.1469,139.92,139.87,25.0225]
[1724968490433,20.88756893,139.92,139.87,25.0225]
[1724968491156,20.88756893,139.92,139.86,7.1495]
[1724968491157,7.1475,139.91,139.86,7.1495]
[1724968492052,7.1479,139.9,139.85,28.68176964]
[1724968492344,7.1479,139.9,139.85,25.0259]
[1724968492935,7.1467,139.93,139.88,7.1489]
[1724968493139,27.1469,139.92,139.87,7.1493]
[1724968493342,7.1476,139.91,139.86,7.1495]
[1724968493544,20.0,139.92,139.85,17.8755]
[1724968493747,7.1475,139.91,139.86,52.27529]
[1724968494148,7.1475,139.91,139.87,7.1493]
[1724968494557,7.147,139.92,139.87,7.1493]
[1724968494727,20.0,139.91,139.87,7.1493]
[1724968495150,27.1474,139.91,139.87,7.1493]
[1724968498250,20.0,139.91,139.88,7.1485]
[1724968498447,27.1469,139.92,139.88,7.1485]
[1724968498647,33.74066893,139.92,139.86,7.1497]
[1724968498850,7.1479,139.9,139.86,7.1498]
[1724968503953,7.1475,139.91,139.86,7.1498]
[1724968504329,7.1475,139.91,139.87,7.1492]
[1724968507259,7.1475,139.91,139.86,25.0242]
[1724968509472,7.1481,139.9,139.86,25.0242]
[1724968512163,7.1481,139.9,139.86,17.8744]
[1724968513063,7.149,139.88,139.83,40.6566]
[1724968513264,7.149,139.88,139.84,7.1509]
[1724968514771,7.149,139.88,139.83,17.8782]
[1724968514772,15.6018,139.89,139.83,25.0295]
[1724968515871,7.1493,139.88,139.83,25.0295]
[1724968516250,7.1495,139.87,139.83,17.8782]
[1724968516768,20.88966893,139.88,139.83,25.0296]
[1724968517765,22.7503,139.89,139.83,17.8782]
[1724968518150,7.149,139.88,139.84,7.1509]
[1724968518558,7.149,139.88,139.83,25.0297]
[1724968520079,7.1497,139.87,139.83,17.8782]
[1724968520975,7.15,139.86,139.83,17.8782]
[1724968521282,7.15,139.86,139.82,7.1519]
[1724968525766,7.1495,139.87,139.82,7.1519]
[1724968525977,7.1495,139.87,139.83,1.42990996]
[1724968526279,7.1495,139.87,139.83,7.1513]
[1724968528078,7.1495,139.87,139.82,7.1519]
[1724968529857,7.1501,139.86,139.81,7.1524]
[1724968531579,7.1507,139.85,139.81,7.1524]
[1724968535893,13.74066893,139.83,139.78,21.7729]
[1724968536069,13.74066893,139.83,139.78,15.3039]
[1724968536070,20.89266893,139.83,139.78,15.3039]
[1724968536384,20.89266893,139.83,139.77,17.8862]
[1724968537172,7.1521,139.82,139.77,25.0407]
[1724968541881,27.1526,139.81,139.75,21.615]
[1724968542281,40.89326893,139.81,139.75,7.1556]
[1724968544193,7.1531,139.8,139.75,7.1556]
[1724968546898,7.1536,139.79,139.75,7.1556]
[1724968547777,7.1532,139.8,139.75,7.1556]
[1724968548190,7.1532,139.8,139.76,7.1551]
[1724968548378,7.1532,139.8,139.75,7.1556]
[1724968549376,7.1536,139.79,139.75,7.1556]
[1724968549580,7.1536,139.79,139.74,25.0463]
[1724968550594,20.89426893,139.79,139.74,25.0463]
[1724968551104,7.1542,139.78,139.74,25.0463]
[1724968551700,7.1542,139.78,139.74,17.8902]
[1724968552406,7.1547,139.77,139.74,17.8902]
[1724968552615,7.1547,139.77,139.73,7.1565]
[1724968552904,7.1552,139.76,139.71,17.8934]
[1724968553200,7.156,139.75,139.71,17.8934]
[1724968553691,7.1552,139.76,139.71,25.0506]
[1724968555699,7.1547,139.77,139.72,7.157]
[1724968562919,7.1547,139.77,139.73,7.1566]
[1724968564508,7.1542,139.78,139.73,7.1566]
[1724968564702,7.1536,139.79,139.74,7.1559]
[1724968564902,20.0,139.78,139.74,7.1559]
[1724968565724,20.0,139.78,139.75,7.1555]
[1724968566839,20.0,139.78,139.74,7.156]
[1724968567013,27.1542,139.78,139.74,7.156]
[1724968569996,7.155,139.77,139.73,17.8911]
[1724968570410,7.155,139.77,139.73,17.3911]
[1724968571094,7.1552,139.76,139.72,22.6463]
[1724968572308,7.1552,139.76,139.72,7.1567]
[1724968572309,6.6552,139.76,139.72,7.1567]
[1724968575087,7.1557,139.75,139.71,7.1576]
[1724968579114,7.1557,139.75,139.7,25.0528]
[1724968586813,7.1557,139.75,139.71,7.1575]
[1724968596908,7.1563,139.74,139.7,25.0528]
[1724968598110,15.9584,139.77,139.71,7.1573]
[1724968598413,27.1552,139.76,139.71,7.1573]
[1724968599226,7.1557,139.75,139.71,7.1573]
[1724968600825,7.1557,139.75,139.7,31.59945811]
[1724968601009,7.1557,139.75,139.7,25.0529]
[1724968602408,7.1557,139.75,139.71,3.66210371]
[1724968602609,7.1557,139.75,139.7,25.0529]
[1724968603230,7.1557,139.75,139.71,7.1576]
[1724968603820,7.1557,139.75,139.7,25.0528]
[1724968604221,7.1564,139.74,139.7,17.8948]
[1724968612312,7.157,139.73,139.68,22.6606]
[1724968612516,20.89766893,139.73,139.69,3.66248106]
[1724968612715,20.89766893,139.73,139.68,7.1592]
[1724968612916,20.89766893,139.73,139.69,3.66257515]
[1724968613139,7.1573,139.72,139.68,7.1592]
[1724968613324,7.1573,139.72,139.69,3.66257607]
[1724968613524,7.1573,139.72,139.68,7.1592]
[1724968613729,7.1573,139.72,139.69,3.66257115]
[1724968613931,7.1573,139.72,139.68,7.1592]
[1724968614235,20.89736893,139.73,139.69,3.66257115]
[1724968614441,20.89736893,139.73,139.68,7.1592]
[1724968614749,20.89736893,139.73,139.69,3.66259827]
[1724968615044,7.1567,139.73,139.69,25.0547]
[1724968615413,7.1567,139.73,139.69,17.8961]
[1724968615846,20.89816893,139.72,139.67,7.1596]
[1724968616042,20.89816893,139.72,139.68,10.21017974]
[1724968616345,20.89816893,139.72,139.67,7.1596]
[1724968616553,20.89816893,139.72,139.68,3.66297249]
[1724968616725,20.89816893,139.72,139.67,7.1596]
[1724968617039,20.89816893,139.72,139.68,3.66299592]
[1724968617246,20.89816893,139.72,139.67,13.70777356]
[1724968617426,20.89816893,139.72,139.68,3.66306411]
[1724968617749,20.89816893,139.72,139.67,7.1596]
[1724968617923,20.89816893,139.72,139.68,3.66306884]
[1724968618119,20.89816893,139.72,139.67,7.1596]
[1724968618323,20.89816893,139.72,139.68,3.66305855]
[1724968618546,20.89816893,139.72,139.67,7.1596]
[1724968618747,20.89816893,139.72,139.68,3.6630962]
[1724968618943,20.89816893,139.72,139.67,7.1596]
[1724968619136,7.1577,139.71,139.66,25.0598]
[1724968619335,7.1577,139.71,139.67,3.6631082]
[1724968619649,7.1577,139.71,139.68,3.6631082]
[1724968619836,7.1577,139.71,139.66,25.0598]
[1724968620037,7.1582,139.7,139.67,3.66329733]
[1724968620242,7.1582,139.7,139.66,17.9]
[1724968620749,20.89886893,139.7,139.66,17.9]
[1724968622338,7.1582,139.7,139.66,17.9]
[1724968625839,7.1582,139.7,139.66,25.0601]
[1724968627634,34.438,139.74,139.66,17.9]
[1724968627834,7.1563,139.74,139.7,7.1581]
[1724968628044,13.6334,139.79,139.74,7.1561]
[1724968628361,7.154,139.79,139.74,7.1561]
[1724968629843,20.0,139.78,139.74,7.1561]
[1724968630050,28.91676893,139.81,139.75,7.1555]
[1724968630549,15.1761,139.81,139.77,7.1541]
[1724968630755,15.1761,139.81,139.76,25.0413]
[1724968630756,22.3287,139.81,139.76,25.0413]
[1724968631762,20.22006893,139.82,139.76,25.0413]
[1724968631763,7.152,139.82,139.76,17.8867]
[1724968633362,7.152,139.82,139.77,7.1545]
[1724968636137,7.152,139.82,139.78,7.154]
[1724968636637,15.0974,139.85,139.78,17.8844]
[1724968636836,7.1506,139.85,139.8,7.153]
[1724968637264,15.23464219,139.88,139.83,7.1513]
[1724968637564,7.1489,139.89,139.83,7.1514]
[1724968637864,13.74066893,139.91,139.85,7.1502]
[1724968638040,13.74066893,139.91,139.83,17.8787]
[1724968638241,13.74066893,139.89,139.83,17.8787]
[1724968638443,7.149,139.88,139.83,17.8787]
[1724968639935,7.149,139.88,139.81,15.056]
[1724968641369,7.149,139.88,139.83,25.0296]
[1724968641744,7.1483,139.9,139.84,7.1507]
[1724968641943,27.1489,139.89,139.84,7.1507]
[1724968642464,26.6489,139.89,139.84,7.1507]
[1724968642867,26.6489,139.89,139.83,25.0297]
[1724968643244,7.149,139.88,139.83,25.0297]
[1724968656912,7.149,139.88,139.84,7.151]
[1724968659074,7.1505,139.85,139.81,7.1522]
[1724968659265,15.984,139.88,139.81,7.1522]
[1724968659266,7.1503,139.86,139.81,7.1522]
[1724968659474,20.0,139.85,139.81,7.1522]
[1724968659868,7.151,139.84,139.8,7.1529]
[1724968660657,7.1506,139.85,139.8,7.1529]
[1724968661688,7.151,139.84,139.8,7.1529]
[1724968662687,7.151,139.84,139.79,31.3958]
[1724968663463,7.151,139.84,139.8,7.153]
[1724968673686,7.1506,139.85,139.8,7.153]
[1724968679425,7.1506,139.85,139.81,7.1525]
[1724968685474,7.151,139.84,139.79,17.8831]
[1724968685674,7.151,139.84,139.79,25.0363]
[1724968686925,7.151,139.84,139.8,7.1529]
[1724968687087,7.1506,139.85,139.8,7.1529]
[1724968690300,7.151,139.84,139.8,7.1529]
[1724968692104,7.1506,139.85,139.8,7.1529]
[1724968696519,13.74066893,139.85,139.79,17.8831]
[1724968696691,7.1531,139.8,139.77,15.5345]
[1724968696896,7.1525,139.82,139.77,15.5345]
[1724968697096,13.74066893,139.83,139.78,3.65947984]
[1724968697097,7.1526,139.81,139.78,3.65947984]
[1724968697309,7.1526,139.81,139.76,13.4732]
[1724968697496,7.1526,139.81,139.77,3.65998722]
[1724968697704,7.1526,139.81,139.76,13.4732]
[1724968698017,7.1526,139.81,139.77,3.66009657]
[1724968698325,7.1526,139.81,139.76,13.4732]
[1724968703620,13.74066893,139.81,139.73,40.1335]
[1724968703805,20.89426893,139.79,139.74,7.1557]
[1724968704609,7.1541,139.78,139.74,7.1557]
[1724968704807,7.1541,139.78,139.73,47.29]